bitfinex-derivatives/quotes_ETHF0:USTF0_20250217
["timestamp","ask_amount","ask_price","bid_price","bid_amount"]
[1739797864961,0.72295,2766.3,2766.2,0.5471]
[1739797865164,0.72298,2766.2,2766.1,3.2078]
[1739797865369,3.61377237,2766.2,2765.7,0.5471]
[1739797865559,0.72306,2765.9,2765.7,0.5471]
[1739797865765,0.72304,2766.0,2765.7,0.5471]
[1739797865969,0.72304,2766.0,2765.7,1.27018]
[1739797866169,0.72304,2766.0,2765.7,0.5471]
[1739797866371,2.458,2766.2,2766.1,0.723]
[1739797866568,3.2078,2767.2,2766.1,3.2078]
[1739797866871,0.5237,2766.9,2766.5,3.93068]
[1739797867069,0.72282,2766.8,2766.5,3.93068]
[1739797867267,1.24651,2766.9,2766.5,3.93068]
[1739797867466,0.72282,2766.8,2766.5,3.93068]
[1739797867768,0.5237,2766.9,2766.5,3.2078]
[1739797867969,0.72285,2766.7,2766.5,3.93068]
[1739797868171,0.72287,2766.6,2766.5,3.2078]
[1739797868467,0.72285,2766.7,2766.5,3.2078]
[1739797868673,0.72283,2766.8,2766.5,3.93068]
[1739797869077,0.5237,2766.9,2766.7,0.72283]
[1739797869573,1.24651,2766.9,2766.7,0.72283]
[1739797869775,1.24651,2766.9,2766.6,0.72285]
[1739797869974,0.5237,2766.9,2766.6,0.72285]
[1739797870277,0.5237,2766.9,2766.3,0.5471]
[1739797870278,0.72292,2766.4,2766.3,0.5471]
[1739797870478,3.09007237,2766.7,2766.3,0.5471]
[1739797870777,2.458,2766.6,2766.3,0.5471]
[1739797870973,0.72292,2766.4,2766.3,0.5471]
[1739797871378,2.458,2766.6,2766.2,3.7702]
[1739797871579,0.72295,2766.3,2766.2,3.2078]
[1739797872180,0.72301,2766.1,2765.9,1.83294]
[1739797872370,1.26749,2766.2,2765.9,1.1099]
[1739797872569,0.5445,2766.2,2766.0,0.72301]
[1739797872778,1.26749,2766.2,2766.0,0.72301]
[1739797873078,0.72301,2766.1,2765.9,1.83294]
[1739797873279,0.5445,2766.2,2765.9,1.1099]
[1739797873468,0.72303,2766.1,2765.9,1.1099]
[1739797873675,1.26749,2766.2,2766.0,0.723]
[1739797874482,0.72301,2766.1,2765.9,1.1099]
[1739797874779,0.72301,2766.1,2766.0,0.72303]
[1739797876383,0.72302,2766.1,2765.9,1.1099]
[1739797876589,0.72302,2766.1,2766.0,0.72303]
[1739797877089,0.5445,2766.2,2766.0,0.72303]
[1739797877090,1.26749,2766.2,2766.0,0.72303]
[1739797877292,1.26749,2766.2,2766.1,0.723]
[1739797877677,0.5255,2766.6,2766.1,0.723]
[1739797877985,3.93062,2766.8,2766.7,0.72284]
[1739797878282,3.93062,2766.8,2766.1,9.28532349]
[1739797878283,0.7229,2766.5,2766.4,0.72291]
[1739797878487,3.2078,2766.8,2766.0,3.2078]
[1739797878688,0.72292,2766.5,2766.3,7.68963854]
[1739797878883,0.72288,2766.6,2766.5,0.72288]
[1739797879086,3.18081,2766.9,2766.7,0.72283]
[1739797879394,2.458,2766.9,2766.3,3.2078]
[1739797879591,0.72287,2766.6,2766.5,1.82888]
[1739797879791,0.72287,2766.6,2766.5,1.106]
[1739797880286,2.458,2766.9,2766.5,1.106]
[1739797880492,2.458,2766.9,2766.8,0.72282]
[1739797880787,2.458,2767.2,2767.1,0.72274]
[1739797880991,2.458,2767.2,2766.6,11.22839803]
[1739797881188,2.458,2767.2,2766.6,3.7377]
[1739797881394,3.09545765,2767.4,2766.6,3.7377]
[1739797881395,5.55345765,2767.4,2767.0,0.72277]
[1739797881694,6.27613765,2767.4,2767.1,0.72272]
[1739797881892,3.2078,2767.2,2766.6,3.7377]
[1739797882092,3.2078,2767.2,2766.5,1.106]
[1739797882093,3.09007237,2767.1,2766.5,1.106]
[1739797882294,3.0028,2767.0,2766.5,1.106]
[1739797882489,0.7228,2766.9,2766.6,0.72285]
[1739797882791,3.0028,2767.0,2766.7,0.72284]
[1739797882792,3.72559,2767.0,2766.7,0.72284]
[1739797883094,3.72559,2767.0,2766.5,1.106]
[1739797883095,3.72558,2767.0,2766.8,0.72281]
[1739797883294,3.2078,2767.2,2767.0,0.72276]
[1739797883295,5.6658,2767.2,2767.0,0.72276]
[1739797884091,3.2078,2767.2,2766.6,3.2078]
[1739797884292,3.2078,2767.2,2767.1,7.53655691]
[1739797884482,3.2078,2767.2,2766.7,7.53655691]
[1739797884686,3.2078,2767.2,2767.1,0.72274]
[1739797885192,0.00538528,2767.4,2767.3,0.72269]
[1739797885387,0.00231522,2768.1,2767.3,3.93049]
[1739797885594,2.46031522,2768.1,2767.4,3.7529]
[1739797885790,3.09007237,2768.0,2767.5,0.5357]
[1739797885997,0.72261,2767.6,2767.5,7.71677475]
[1739797886591,0.72261,2767.6,2767.1,0.55611829]
[1739797886592,0.72271,2767.2,2767.1,0.55611829]
[1739797888395,0.72267,2767.4,2767.2,0.72271]
[1739797888590,0.72267,2767.4,2767.1,1.27883829]
[1739797889199,0.72271,2767.2,2767.1,0.00541829]
[1739797889797,0.525,2767.6,2767.1,0.00541829]
[1739797889996,0.72271,2767.2,2767.1,0.00541829]
[1739797891201,0.525,2767.6,2767.1,0.72813829]
[1739797891396,2.33156,2767.6,2767.1,0.00541829]
[1739797891699,0.72271,2767.2,2767.1,0.00541829]
[1739797897303,5.6648,2767.3,2767.1,0.72814829]
[1739797897493,0.72271,2767.2,2767.1,0.00541829]
[1739797900102,5.54707237,2767.3,2767.1,0.00541829]
[1739797900103,2.457,2767.3,2767.1,0.00541829]
[1739797900409,2.457,2767.3,2767.2,0.72271]
[1739797900410,3.17969,2767.3,2767.2,0.72271]
[1739797900705,2.457,2767.3,2767.1,0.00541829]
[1739797900906,3.17971,2767.3,2767.2,0.72271]
[1739797901408,2.457,2767.3,2767.2,0.72271]
[1739797901709,3.17969,2767.3,2767.2,1.29641]
[1739797901906,2.457,2767.3,2767.2,1.29641]
[1739797902403,3.17969,2767.3,2767.2,1.29641]
[1739797902706,3.17969,2767.3,2767.2,0.5737]
[1739797903013,3.17969,2767.3,2767.2,1.29641]
[1739797904609,6.82287237,2767.6,2767.2,0.5737]
[1739797904812,0.00541829,2767.8,2767.2,0.5737]
[1739797905008,2.46241829,2767.8,2767.4,0.72265]
[1739797905206,0.72264,2767.5,2767.4,0.72265]
[1739797905412,0.72263,2767.6,2767.2,8.26229489]
[1739797905713,2.46241829,2767.8,2767.4,0.72264]
[1739797905915,0.72264,2767.5,2767.4,0.72264]
[1739797906108,2.46241829,2767.8,2767.2,8.26229489]
[1739797906312,2.46241829,2767.8,2767.5,0.72262]
[1739797906313,0.72262,2767.6,2767.5,0.72262]
[1739797909211,2.46241829,2767.8,2767.2,8.26229489]
[1739797910111,0.72261,2767.7,2767.6,0.7226]
[1739797910513,0.72263,2767.6,2767.5,0.72262]
[1739797910812,0.00541829,2767.8,2767.7,0.72258]
[1739797911516,0.00541829,2767.8,2767.7,1.29978]
[1739797911712,0.00541829,2767.8,2767.7,4.50758]
[1739797917219,0.00231522,2768.1,2767.7,4.50758]
[1739797917519,0.00231522,2768.1,2768.0,3.9303]
[1739797918015,0.486,2768.9,2768.3,1.80607]
[1739797918213,0.5597,2769.0,2768.4,4.3071]
[1739797918214,1.28197,2769.0,2768.4,4.3071]
[1739797918418,0.72228,2768.9,2768.4,11.758802]
[1739797918619,1.28195,2769.0,2768.8,0.72229]
[1739797918817,0.5597,2769.0,2768.4,11.758802]
[1739797919017,0.486,2769.3,2768.9,3.2078]
[1739797919315,3.09007237,2769.8,2769.2,3.2078]
[1739797919516,3.09007237,2769.8,2769.4,0.72214]
[1739797919714,3.81215237,2769.7,2769.3,0.72215]
[1739797920217,3.09007237,2769.7,2769.2,3.2078]
[1739797920420,0.7221,2769.6,2769.4,0.72214]
[1739797920922,3.09007237,2769.7,2769.5,0.72209]
[1739797921123,3.09007237,2769.7,2769.3,0.524]
[1739797921428,4.50531,2769.9,2769.6,0.72208]
[1739797921815,3.7833,2769.9,2769.6,0.72208]
[1739797922315,3.2078,2769.9,2769.6,1.27817]
[1739797922520,5.54607237,2770.0,2769.6,0.5561]
[1739797922820,6.26807237,2770.0,2769.6,1.27817]
[1739797923026,5.54607237,2770.0,2769.6,0.5561]
[1739797923216,3.7861,2770.2,2769.6,1.1278]
[1739797923522,0.72197,2770.1,2769.7,7.3925129]
[1739797923718,0.72198,2770.1,2769.8,0.72203]
[1739797924227,0.72199,2770.0,2769.7,8.1145629]
[1739797924418,0.72206,2769.8,2769.6,1.1278]
[1739797924716,3.81208237,2770.0,2769.7,0.72206]
[1739797924920,3.81208237,2770.0,2769.6,1.1278]
[1739797924921,0.72201,2769.9,2769.6,1.84987]
[1739797925623,3.09007237,2770.0,2769.6,1.1278]
[1739797925823,0.72204,2769.8,2769.6,1.84988]
[1739797926528,0.72204,2769.8,2769.6,1.1278]
[1739797926822,0.72205,2769.8,2769.6,1.84989]
[1739797927420,0.72206,2769.7,2769.6,1.1278]
[1739797928712,3.09007237,2770.1,2769.5,3.2078]
[1739797928918,0.72209,2769.6,2769.5,3.2078]
[1739797929524,0.5383,2769.7,2769.2,0.5746]
[1739797929822,0.5383,2769.7,2768.8,1.29798]
[1739797929823,0.72223,2769.1,2768.8,1.29798]
[1739797930121,2.455,2769.3,2768.8,8.23307856]
[1739797930326,0.72223,2769.1,2768.8,8.23307856]
[1739797930621,2.455,2769.3,2768.8,8.23307856]
[1739797930822,0.7223,2768.8,2768.7,3.2078]
[1739797931326,0.5364,2769.0,2768.6,0.00541829]
[1739797931518,0.72232,2768.7,2768.6,0.00541829]
[1739797932616,0.5578,2768.9,2768.7,0.72232]
[1739797932929,3.0128,2768.9,2768.7,0.72232]
[1739797933223,3.0128,2768.9,2768.6,0.00541829]
[1739797933524,3.0128,2768.9,2768.7,0.72231]
[1739797933727,3.0128,2768.9,2768.6,0.00541829]
[1739797933925,3.0128,2768.9,2768.6,0.72774829]
[1739797934126,0.72231,2768.8,2768.6,0.72774829]
[1739797934520,3.0128,2768.9,2768.6,0.00541829]
[1739797934720,3.0128,2768.9,2768.7,0.7223]
[1739797935022,3.73508,2768.9,2768.7,0.7223]
[1739797935428,3.73508,2768.9,2768.6,0.00541829]
[1739797935429,3.0128,2768.9,2768.6,0.00541829]
[1739797935628,0.72231,2768.8,2768.7,0.72232]
[1739797936023,1.28008,2768.9,2768.7,0.7223]
[1739797936225,0.5364,2769.0,2768.6,0.00541829]
[1739797936430,0.5364,2769.0,2768.9,0.72227]
[1739797936625,0.72219,2769.2,2769.0,0.72223]
[1739797936828,0.72219,2769.2,2769.0,0.72222]
[1739797937022,0.72222,2769.1,2769.0,0.72222]
[1739797937223,0.72227,2769.0,2768.8,1.29959]
[1739797937425,0.72227,2768.9,2768.8,0.5773]
[1739797937729,0.72232,2768.7,2768.6,0.00541829]
[1739797939227,0.5225,2768.9,2768.6,0.00541829]
[1739797939731,0.72232,2768.7,2768.6,0.00541829]
[1739797940125,0.72248,2768.1,2768.0,3.2078]
[1739797940827,2.455,2768.4,2768.0,3.2078]
[1739797941027,0.72246,2768.2,2768.0,3.2078]
[1739797941227,0.72248,2768.1,2768.0,3.2078]
[1739797943728,0.7225,2768.0,2767.9,0.00541829]
[1739797947745,3.1775,2768.0,2767.9,0.00541829]
[1739797952649,5.01391,2768.3,2767.9,6.05541829]
[1739797952857,0.72177,2770.9,2769.1,3.2078]
[1739797953144,3.09007237,2771.3,2770.8,3.2078]
[1739797953346,3.09007237,2771.3,2770.0,3.09007237]
[1739797953347,0.72167,2771.2,2770.9,3.2078]
[1739797953547,3.72086312,2771.3,2770.9,3.2078]
[1739797953746,4.11070001,2771.5,2770.9,3.2078]
[1739797953747,0.90290001,2771.5,2770.9,3.2078]
[1739797953954,3.67723001,2771.4,2770.9,3.2078]
[1739797954152,2.95560001,2771.4,2770.9,3.2078]
[1739797954449,2.594,2771.4,2771.2,3.2078]
[1739797954852,2.593,2771.4,2771.2,3.2078]
[1739797955045,2.593,2771.4,2771.3,0.53716337]
[1739797955249,2.593,2771.4,2771.3,1.73784049]
[1739797955757,2.59,2771.5,2771.3,1.73784049]
[1739797955953,3.56940001,2771.9,2771.4,1.20067712]
[1739797956161,3.09007237,2771.5,2771.4,1.20067712]
[1739797956455,3.81166237,2771.5,2771.4,1.20067712]
[1739797956656,13.16834163,2771.5,2771.4,0.46179889]
[1739797956851,0.72164,2771.3,2771.2,3.2078]
[1739797957249,6.72164,2771.3,2771.2,3.2078]
[1739797957653,46.8,2771.3,2770.9,3.2078]
[1739797957857,0.7217,2771.1,2770.9,3.2078]
[1739797958054,40.8,2771.3,2770.9,3.2078]
[1739797958259,40.8,2771.3,2771.2,3.2078]
[1739797958461,40.8,2771.3,2770.9,3.2078]
[1739797958963,0.7217,2771.1,2770.9,3.2078]
[1739797959160,0.72172,2771.0,2770.9,3.2078]
[1739797959463,0.72175,2770.9,2770.8,0.00541829]
[1739797959657,3.85175163,2771.1,2770.8,0.00541829]
[1739797959965,3.31469,2771.2,2770.9,3.2078]
[1739797960259,2.593,2771.2,2770.9,3.2078]
[1739797960449,0.72167,2771.2,2770.9,3.2078]
[1739797960648,2.6,2771.2,2770.9,3.2078]
[1739797961260,3.32167,2771.2,2770.9,3.2078]
[1739797961854,3.32168,2771.2,2770.9,3.2078]
[1739797962251,0.7217,2771.1,2770.9,3.2078]
[1739797962761,0.72172,2771.1,2770.9,3.2078]
[1739797962961,0.72172,2771.0,2770.9,3.2078]
[1739797963663,0.72171,2771.1,2770.9,3.2078]
[1739797963964,2.6,2771.2,2770.9,3.2078]
[1739797963965,0.72172,2771.0,2770.9,3.2078]
[1739797964554,2.6,2771.2,2770.9,3.2078]
[1739797964866,0.72172,2771.0,2770.9,3.2078]
[1739797965060,2.6,2771.2,2770.9,3.2078]
[1739797965461,0.72171,2771.1,2770.9,3.2078]
[1739797967264,0.72172,2771.0,2770.9,3.2078]
[1739797967860,2.6,2771.2,2770.9,3.2078]
[1739797968164,2.594,2771.1,2770.9,3.92954]
[1739797968365,2.595,2771.1,2770.9,3.2078]
[1739797968860,3.31671,2771.1,2770.9,3.2078]
[1739797969060,2.595,2771.1,2770.9,3.2078]
[1739797969262,3.3167,2771.1,2770.9,3.2078]
[1739797969757,3.85175163,2771.5,2770.9,3.2078]
[1739797969959,0.7217,2771.1,2770.9,3.2078]
[1739797970363,2.589,2771.2,2771.0,0.72171]
[1739797970565,0.7217,2771.1,2771.0,0.5677]
[1739797970763,0.72169,2771.2,2771.0,0.5677]
[1739797970965,2.589,2771.3,2771.0,1.2894]
[1739797971269,3.31064,2771.3,2771.2,3.2078]
[1739797972263,0.26610158,2771.8,2771.2,3.2078]
[1739797972464,3.7284,2772.0,2771.5,3.2078]
[1739797972465,0.72157,2771.6,2771.5,3.2078]
[1739797972661,0.7215,2771.9,2771.6,0.72156]
[1739797972866,2.584,2771.8,2771.6,0.72156]
[1739797973374,3.30548,2772.0,2771.6,0.72155]
[1739797973665,3.30548,2772.0,2771.9,3.2078]
[1739797975065,3.30546,2772.0,2771.9,3.2078]
[1739797975265,3.30145,2772.1,2771.9,3.2078]
[1739797975870,2.58,2772.1,2771.9,3.2078]
[1739797976073,0.72146,2772.0,2771.9,3.2078]
[1739797976565,2.58,2772.1,2771.9,3.2078]
[1739797976769,0.72146,2772.0,2771.9,3.2078]
[1739797977673,0.72142,2772.2,2771.9,3.2078]
[1739797977877,3.29439,2772.3,2772.0,0.72144]
[1739797978072,3.2078,2772.7,2772.1,0.72143]
[1739797978277,3.2078,2772.7,2772.2,3.2078]
[1739797978278,2.574,2772.7,2772.2,3.2078]
[1739797978479,0.72134,2772.5,2772.2,3.9292]
[1739797978774,0.72138,2772.4,2772.3,0.45627031]
[1739797979177,2.571,2772.6,2772.3,0.45627031]
[1739797979370,3.29232,2772.6,2772.5,3.2078]
[1739797979876,3.29232,2772.6,2772.5,3.66407031]
[1739797980271,14.85002156,2772.6,2770.9,3.2078]
[1739797980471,3.07122156,2771.6,2771.2,3.2078]
[1739797980674,0.72163,2771.4,2771.3,0.53596645]
[1739797980873,2.581,2771.5,2771.3,0.53596645]
[1739797981172,2.582,2771.5,2771.4,0.53596645]
[1739797981675,5.65322156,2771.5,2771.4,0.53710189]
[1739797981975,6.37481156,2771.5,2771.4,0.53710189]
[1739797982566,3.30359,2771.5,2771.4,0.53710189]
[1739797982773,3.29758088,2771.5,2771.4,0.53710189]
[1739797983477,7.18558088,2771.5,2771.4,0.53710189]
[1739797983771,7.18558088,2771.5,2771.4,0.53898784]
[1739797984177,16.39338088,2771.5,2771.4,0.22298784]
[1739797984380,0.72164,2771.3,2771.2,0.00541829]
[1739797984576,4.57263475,2771.3,2771.2,0.00541829]
[1739797985572,3.29964,2771.3,2771.2,0.00541829]
[1739797987583,7.15063475,2771.3,2771.2,0.00541829]
[1739797990779,10.35843475,2771.3,2771.2,0.00541829]
[1739797992482,7.15063475,2771.3,2771.2,0.46285308]
[1739797992880,10.35843475,2771.3,2771.2,0.20945309]
[1739797993086,0.72177,2770.8,2770.7,3.2078]
[1739797993281,3.28277,2770.8,2770.7,3.2078]
[1739797996188,0.72183,2770.6,2770.5,0.00541829]
[1739797996389,4.57282475,2770.6,2770.5,0.54138777]
[1739797996588,4.78818947,2770.6,2770.5,0.53596948]
[1739797997790,4.78818947,2770.6,2770.5,0.53581505]
[1739798000591,3.2078,2771.0,2770.5,0.53581505]
[1739798000792,0.7218,2770.7,2770.6,1.10861505]
[1739798001598,3.85099475,2770.9,2770.5,3.2078]
[1739798001799,0.7218,2770.7,2770.6,0.53562707]
[1739798001987,3.2778,2770.7,2770.6,0.53562707]
[1739798004701,6.35293579,2770.7,2770.6,0.53562707]
[1739798005105,6.35293579,2770.7,2770.6,0.99112461]
[1739798005805,6.35293579,2770.7,2770.6,0.99098881]
[1739798007104,6.35293579,2770.7,2770.6,0.45549754]
[1739798007303,0.72188,2770.4,2770.3,0.00541829]
[1739798007503,3.79701579,2770.4,2770.3,0.54135239]
[1739798007903,2.551,2770.9,2770.3,0.54135239]
[1739798008113,1.6817,2770.9,2770.8,3.2078]
[1739798008312,1.6817,2770.9,2770.8,3.7437341]
[1739798008603,0.72173,2771.0,2770.8,4.2766341]
[1739798008907,0.72173,2771.0,2770.9,0.5359341]
[1739798010106,0.72173,2771.0,2770.9,0.53645195]
[1739798011408,0.72173,2771.0,2770.9,1.06675195]
[1739798011608,0.72173,2771.0,2770.9,1.0669806]
[1739798012506,3.79686579,2771.0,2770.9,1.0669806]
[1739798013612,3.79686579,2771.0,2770.9,1.06718828]
[1739798014305,0.72173,2771.0,2770.9,1.06718828]
[1739798014506,3.888,2771.5,2770.9,1.06718828]
[1739798014710,3.888,2771.6,2771.4,3.2078]
[1739798014913,4.60957,2771.6,2771.5,1.05908828]
[1739798017412,4.60957,2771.6,2771.5,1.05307916]
[1739798017611,4.60957,2771.6,2771.5,1.05241306]
[1739798018009,4.60957,2771.6,2771.5,1.05241642]
[1739798018213,4.60957,2771.6,2771.5,0.53622554]
[1739798018415,4.60957,2771.6,2771.1,0.5252]
[1739798018416,0.72167,2771.2,2771.1,0.5252]
[1739798019812,0.72167,2771.2,2771.1,0.45281588]
[1739798033115,3.24767,2771.2,2771.1,0.45281588]
[1739798034727,3.60927001,2771.2,2771.1,0.45281588]
[1739798035424,1.08327001,2771.2,2771.1,0.45281588]
[1739798035725,3.60527001,2771.2,2771.1,0.45281588]
[1739798038327,3.59927001,2771.2,2771.1,0.45281588]
[1739798053234,7.88961001,2771.2,2770.6,0.5333]
[1739798053438,0.7218,2770.7,2770.6,0.5333]
[1739798053741,3.2058,2770.7,2770.6,0.5333]
[1739798055741,5.55913579,2770.7,2770.5,0.5718]
[1739798055936,0.7219,2770.3,2770.2,0.5249]
[1739798056139,3.2029,2770.3,2770.2,0.5249]
[1739798057444,3.43482087,2770.3,2770.2,0.5249]
[1739798058640,3.2029,2770.3,2770.2,0.5249]
[1739798059545,3.43329629,2770.3,2770.2,0.5249]
[1739798059955,2.71139629,2770.3,2770.0,0.00541829]
[1739798060159,3.79709579,2770.1,2770.0,0.00541829]
[1739798061160,2.474,2770.1,2770.0,3.21321829]
[1739798061352,3.07513579,2770.4,2770.0,3.21321829]
[1739798061559,0.72193,2770.2,2770.0,3.21321829]
[1739798061952,0.72193,2770.2,2770.1,0.5545]
[1739798062154,2.474,2770.3,2770.1,0.5545]
[1739798062354,2.474,2770.3,2770.2,0.5411]
[1739798062355,3.1959,2770.3,2770.2,0.5411]
[1739798063458,0.72196,2770.1,2770.0,3.21321829]
[1739798063658,3.79709579,2770.1,2770.0,3.21321829]
[1739798065252,3.07513579,2770.1,2770.0,3.66261912]
[1739798065657,0.72194,2770.2,2770.0,3.66261912]
[1739798065859,0.72194,2770.2,2770.1,1.0993]
[1739798066058,0.72194,2770.2,2770.1,1.54870083]
[1739798066666,2.464,2770.2,2770.1,2.27065083]
[1739798067061,2.464,2770.2,2770.1,1.54870083]
[1739798067257,3.18593,2770.2,2770.1,1.54870083]
[1739798068561,0.5438,2770.6,2770.1,1.54870083]
[1739798068861,3.18183,2770.6,2770.5,3.2078]
[1739798069165,0.72183,2770.6,2770.5,3.2078]
[1739798069666,0.72183,2770.6,2770.5,3.65720083]
[1739798070665,0.5237,2770.9,2770.5,3.65720083]
[1739798070878,2.461,2770.8,2770.6,0.5226]
[1739798071167,3.18277,2770.8,2770.7,0.5785]
[1739798071568,0.72176,2770.9,2770.7,0.5785]
[1739798071765,3.18176,2770.9,2770.8,3.65720083]
[1739798073264,2.46,2770.9,2770.8,3.65720083]
[1739798073470,2.46,2770.9,2770.8,4.37897083]
[1739798074171,3.18175,2770.9,2770.8,4.37897083]
[1739798074468,6.25688579,2770.9,2770.8,3.65720083]
[1739798078068,5.53513579,2770.9,2770.8,4.22660083]
[1739798078873,6.25688579,2770.9,2770.8,4.22660083]
[1739798082673,3.79688579,2770.9,2770.8,4.22660083]
[1739798082874,3.62023579,2771.3,2770.8,4.22660083]
[1739798083081,0.72167,2771.2,2771.1,3.2078]
[1739798083978,0.72167,2771.2,2771.1,3.65720083]
[1739798086280,2.458,2771.3,2771.1,3.65720083]
[1739798086574,2.458,2771.3,2771.2,1.17107083]
[1739798086778,2.458,2771.3,2771.2,1.74377083]
[1739798086981,2.458,2771.3,2771.2,1.02210083]
[1739798087183,0.72164,2771.3,2771.2,1.02210083]
[1739798087380,0.5632,2771.4,2771.2,1.02210083]
[1739798087681,0.72164,2771.3,2771.2,1.02210083]
[1739798088376,0.5632,2771.4,2771.2,1.02210083]
[1739798088576,0.72164,2771.3,2771.2,1.74376083]
[1739798088770,0.72164,2771.3,2771.2,1.02210083]
[1739798089378,0.72164,2771.3,2771.2,1.74375083]
[1739798089683,0.72164,2771.3,2771.2,1.02210083]
[1739798090779,0.72164,2771.3,2771.2,1.74377083]
[1739798091381,0.72164,2771.3,2771.2,1.02210083]
[1739798092381,0.72164,2771.3,2771.2,1.74377083]
[1739798094684,0.72164,2771.3,2771.2,1.02210083]
[1739798094884,0.72164,2771.3,2771.2,1.74377083]
[1739798096486,0.72164,2771.3,2771.2,1.02210083]
[1739798097087,0.72164,2771.3,2771.2,1.74377083]
[1739798098390,0.72164,2771.3,2771.2,1.02210083]
[1739798098982,0.5632,2771.4,2770.5,3.2078]
[1739798099284,0.7219,2770.3,2770.2,4.57456649]
[1739798099484,0.7219,2770.3,2770.2,3.2078]
[1739798100382,3.79703579,2770.3,2770.2,3.2078]
[1739798101685,4.03880863,2770.3,2770.2,3.2078]
[1739798101880,3.79703579,2770.3,2770.2,3.2078]
[1739798105295,2.458,2770.5,2770.2,3.2078]
[1739798105481,2.458,2770.6,2770.2,10.72035184]
[1739798105683,6.11123579,2770.8,2770.5,3.92963]
[1739798105879,5.53313579,2770.8,2770.6,0.5434]
[1739798106788,6.25491579,2770.8,2770.6,0.5434]
[1739798107193,0.7218,2770.7,2770.6,0.5434]
[1739798108693,5.53313579,2770.8,2770.6,0.5434]
[1739798109095,6.25493579,2770.8,2770.6,0.5434]
[1739798109294,6.25492579,2770.8,2770.6,0.5434]
[1739798109488,6.25492579,2770.8,2770.6,1.26522]
[1739798109694,2.458,2771.0,2770.6,0.5434]
[1739798109987,2.458,2771.0,2770.8,3.2078]
[1739798109988,0.72173,2771.0,2770.8,3.2078]
[1739798110188,0.72173,2771.0,2770.9,1.0833]
[1739798113096,3.07513579,2771.1,2770.9,1.0833]
[1739798113399,0.72172,2771.0,2770.9,1.0833]
[1739798118204,0.72172,2771.0,2770.9,1.80505]
[1739798118406,3.07513579,2771.1,2770.9,1.0833]
[1739798118811,0.72172,2771.0,2770.9,1.0833]
[1739798119012,0.72172,2771.0,2770.9,1.80505]
[1739798119408,0.72172,2771.0,2770.9,1.0833]
[1739798122016,0.72172,2771.0,2770.9,1.80505]
[1739798122519,0.72172,2771.0,2770.9,1.0833]
[1739798122722,0.72172,2771.0,2770.9,1.80505]
[1739798123215,3.79685579,2771.1,2771.0,0.72172]
[1739798123405,3.07513579,2771.1,2770.9,1.0833]
[1739798123714,0.72172,2771.0,2770.9,1.80503]
[1739798125118,0.72172,2771.0,2770.9,1.80504]
[1739798126912,0.72172,2771.0,2770.9,1.80505]
[1739798127217,0.72172,2771.0,2770.9,1.0833]
[1739798128017,0.72172,2771.0,2770.9,1.80505]
[1739798129312,3.07513579,2771.1,2770.9,1.0833]
[1739798129511,3.79685579,2771.1,2771.0,0.72172]
[1739798130114,3.07513579,2771.1,2770.9,8.84619813]
[1739798130320,3.07513579,2771.1,2770.9,8.30209813]
[1739798130522,0.72172,2771.0,2770.9,9.02383813]
[1739798134910,3.79685579,2771.1,2771.0,0.72172]
[1739798136311,3.79683579,2771.1,2771.0,0.72172]
[1739798136723,3.79683579,2771.1,2771.0,0.7217]
[1739798136724,0.72172,2771.1,2771.0,0.7217]
[1739798138728,2.09713814,2771.1,2771.0,0.7217]
[1739798139926,3.0351,2771.2,2771.1,0.7217]
[1739798139927,0.5781,2771.2,2771.1,0.7217]
[1739798140125,0.5781,2771.2,2771.1,3.9295]
[1739798140324,0.5781,2771.2,2771.1,3.2078]
[1739798140525,0.5781,2771.2,2771.1,3.9295]
[1739798140925,1.29977,2771.2,2771.1,3.2078]
[1739798141126,1.29977,2771.2,2771.1,3.9295]
[1739798141436,1.29977,2771.2,2771.1,3.2078]
[1739798141728,1.29977,2771.2,2771.1,3.9295]
[1739798141929,1.29977,2771.2,2771.1,3.2078]
[1739798142129,1.29977,2771.2,2771.1,3.9295]
[1739798142431,1.29977,2771.2,2771.1,3.2078]
[1739798143532,1.29977,2771.2,2771.1,3.9295]
[1739798143828,1.29977,2771.2,2771.1,3.2078]
[1739798144031,1.29977,2771.2,2771.1,3.9295]
[1739798144838,0.5781,2771.2,2771.1,3.9295]
[1739798145431,1.29977,2771.2,2771.1,3.2078]
[1739798147734,1.29977,2771.2,2770.8,3.2078]
[1739798147735,0.72175,2770.9,2770.8,3.2078]
[1739798148330,1.24595,2770.9,2770.8,3.2078]
[1739798148637,1.24595,2770.9,2770.2,3.30318463]
[1739798148638,0.72188,2770.4,2770.2,1.36676649]
[1739798148830,2.09732814,2770.3,2770.2,1.36676649]
[1739798149031,2.63132814,2770.3,2770.2,1.36676649]
[1739798149225,1.90941814,2770.3,2770.2,1.36676649]
[1739798149432,1.90941814,2770.3,2770.1,3.92976]
[1739798149829,1.90941814,2770.3,2770.1,3.2078]
[1739798150031,1.90941814,2770.3,2770.1,3.92974]
[1739798150425,1.90941814,2770.3,2770.0,0.00541829]
[1739798150426,0.72193,2770.2,2770.0,0.00541829]
[1739798150627,6.25410771,2770.1,2770.0,0.00541829]
[1739798150932,0.72201,2769.9,2769.8,3.2078]
[1739798151236,0.72209,2769.6,2769.5,1.36676649]
[1739798151438,0.72212,2769.5,2769.1,3.2078]
[1739798151628,0.5454,2769.5,2769.1,3.2078]
[1739798152032,0.5454,2769.5,2769.1,3.93002]
[1739798152434,0.5454,2769.5,2769.1,3.2078]
[1739798153127,0.5454,2769.5,2769.1,3.93]
[1739798153336,0.5454,2769.5,2769.1,3.2078]
[1739798153836,0.5454,2769.5,2769.1,3.93001]
[1739798154633,0.5454,2769.5,2769.1,3.2078]
[1739798154832,0.00541829,2769.6,2769.4,3.92993]
[1739798155437,0.00541829,2769.6,2769.4,3.2078]